fUSD/lending_fUSD_20250217
["ID","MTS","AMOUNT","RATE_DAILY","PERIOD"]
[353316803,1739758231918,-150.0,8.835e-05,2]
[353316804,1739758231927,-2462.8502,8.836e-05,2]
[353316805,1739758231936,-161.2034,8.836e-05,2]
[353316806,1739758231946,-13683.9845,8.836e-05,2]
[353316807,1739758231956,-525.2087,8.836e-05,2]
[353316808,1739758231967,-10853.4366,8.836e-05,2]
[353316809,1739758231978,-15284.43750192,8.836e-05,2]
[353316810,1739758231988,-186.5879988,8.836e-05,2]
[353316811,1739758231996,-1000.0,8.851e-05,2]
[353316812,1739758232007,-1420.2063,8.973e-05,2]
[353316813,1739758232016,-1000.0,8.979e-05,2]
[353316814,1739758232025,-421.76,8.989e-05,2]
[353316815,1739758232034,-947.38,9.036e-05,2]
[353316816,1739758232043,-1500.0,9.128e-05,2]
[353316817,1739758232052,-250.0,9.288e-05,2]
[353316818,1739758232061,-500.0,9.298e-05,3]
[353316819,1739758232069,-321.88,9.308e-05,2]
[353316820,1739758232079,-542.27,9.335e-05,2]
[353316821,1739758232088,-166.41,9.374e-05,2]
[353316822,1739758232097,-170.4,9.614e-05,2]
[353316823,1739758232106,-255.0,9.718e-05,2]
[353316824,1739758232116,-420.0,9.718e-05,2]
[353316825,1739758232125,-150.0,9.719e-05,2]
[353316826,1739758232135,-150.0,9.719e-05,2]
[353316827,1739758232144,-200.0,9.736e-05,2]
[353316828,1739758232153,-301.71,9.781e-05,2]
[353316829,1739758232163,-681.38,9.781e-05,2]
[353316830,1739758232172,-150.0,9.781e-05,2]
[353316831,1739758232182,-150.0,9.781e-05,2]
[353316832,1739758232191,-213.28,9.781e-05,2]
[353316833,1739758232200,-150.0,9.781e-05,2]
[353316834,1739758232210,-150.0,9.781e-05,2]
[353316835,1739758232219,-206.7426071,9.999e-05,2]
[353316836,1739758232228,-1000.0,9.999e-05,2]
[353316837,1739758232237,-1000.0,9.999e-05,2]
[353316838,1739758232246,-1000.0,9.999e-05,2]
[353316839,1739758232256,-1000.0,9.999e-05,2]
[353316840,1739758232265,-1000.0,9.999e-05,2]
[353316841,1739758232275,-186.58799879,9.999e-05,2]
[353316842,1739758232284,-75149.46513063,0.0001,2]
[353316847,1739758237848,-2000.0,8.83e-05,2]
[353316848,1739758237858,-7728.13633588,0.0001,2]
[353316955,1739758239678,-827395.98316372,0.0001,2]
[353316956,1739758239689,-362746.31658947,0.0001,2]
[353316957,1739758239699,-200.0,0.0001,2]
[353316958,1739758239709,-200.0,0.0001,7]
[353316960,1739758239718,-199.64,0.0001,2]
[353316962,1739758239727,-1001.67,0.0001,3]
[353316964,1739758239737,-550.0,0.0001,2]
[353316966,1739758239747,-435.47769846,0.0001,2]
[353316968,1739758239756,-86491.07839993,0.0001,2]
[353316970,1739758239766,-165.37713085,0.0001,2]
[353316972,1739758239776,-204.52327971,0.0001,2]
[353316974,1739758239785,-665.11,0.0001,2]
[353316976,1739758239795,-3023.34671,0.0001,2]
[353316978,1739758239804,-316.56008408,0.0001,2]
[353316980,1739758239813,-297.95315802,0.0001,2]
[353316982,1739758239823,-491.94573826,0.0001,2]
[353316984,1739758239833,-15425.06875503,0.0001,2]
[353316986,1739758239843,-507.89,0.0001,2]
[353316988,1739758239853,-281.3882286,0.00010026,2]
[353316990,1739758239863,-1422.24,0.00010033,2]
[353316992,1739758239874,-1000.0,0.00010101,2]
[353316994,1739758239885,-297.95315795,0.00010121,2]
[353316996,1739758239895,-415.71,0.00010137,2]
[353316999,1739758239905,-163.99,0.00010137,2]
[353317001,1739758239915,-947.38,0.00010165,2]
[353317003,1739758239924,-579.28,0.00010188,2]
[353317005,1739758239933,-166.41,0.00010311,2]
[353317007,1739758239943,-297.95315795,0.00010341,2]
[353317009,1739758239953,-250.0,0.00010399,2]
[353317011,1739758239962,-153.34,0.00010461,2]
[353317013,1739758239972,-153.34,0.00010487,2]
[353317015,1739758239981,-153.34,0.00010513,2]
[353317017,1739758239990,-297.95315795,0.00010562,2]
[353317019,1739758239999,-348.0,0.0001069,2]
[353317021,1739758240009,-587.0,0.0001069,2]
[353317022,1739758240019,-297.95315795,0.00010782,2]
[353317023,1739758240028,-929.96,0.00010817,2]
[353317024,1739758240037,-165.3771308,0.000109,2]
[353317025,1739758240047,-502.050006,0.000109,2]
[353317026,1739758240056,-150.0,0.00010959,2]
[353317027,1739758240066,-315.5,0.00010959,2]
[353317028,1739758240075,-300.0,0.00010999,2]
[353317030,1739758240084,-1000.0,0.00010999,2]
[353317032,1739758240094,-60824.27516769,0.00011,2]
[353317034,1739758240104,-297.95315795,0.00011003,2]
[353317036,1739758240113,-214.53,0.00011021,2]
[353317038,1739758240122,-214.53,0.00011024,2]
[353317040,1739758240132,-214.53,0.00011027,2]
[353317042,1739758240141,-214.53,0.0001103,2]
[353317044,1739758240150,-214.53,0.00011033,2]
[353317046,1739758240159,-214.53,0.00011036,2]
[353317048,1739758240168,-214.53,0.00011039,2]
[353317050,1739758240177,-214.53,0.00011042,2]
[353317052,1739758240187,-214.53,0.00011045,2]
[353317054,1739758240196,-214.53,0.00011047,2]
[353317056,1739758240205,-214.53,0.0001105,2]
[353317058,1739758240215,-214.53,0.00011053,2]
[353317060,1739758240224,-214.53,0.00011056,2]
[353317062,1739758240235,-214.53,0.00011059,2]
[353317064,1739758240244,-214.53,0.00011062,2]
[353317066,1739758240253,-214.53,0.00011065,2]
[353317068,1739758240262,-214.53,0.00011068,2]
[353317070,1739758240271,-214.53,0.00011071,2]
[353317072,1739758240281,-214.53,0.00011074,2]
[353317074,1739758240289,-214.53,0.00011076,2]
[353317076,1739758240298,-6123.6966815,0.00011099,2]
[353317078,1739758240307,-6123.69668144,0.00011099,2]
[353317079,1739758240316,-6123.69668144,0.00011099,2]
[353317081,1739758240325,-9705.01671162,0.00011099,2]
[353317083,1739758240334,-9705.01671162,0.00011099,2]
[353317107,1739758240549,-9705.01671162,0.00011099,2]
[353317109,1739758240559,-212.55231658,0.00011125,2]
[353317111,1739758240568,-153.73855941,0.0001115,2]
[353317113,1739758240577,-500.0,0.0001115,2]
[353317115,1739758240586,-160.98886304,0.0001115,2]
[353317117,1739758240595,-506.59364825,0.00011167,2]
[353317119,1739758240604,-31732.57847648,0.000112,2]
[353317121,1739758240614,-1000.0,0.00011224,2]
[353317123,1739758240623,-166.41,0.00011248,2]
[353317125,1739758240632,-947.38,0.00011295,2]
[353317127,1739758240641,-1578.7652574,0.00011299,2]
[353317129,1739758240650,-198.0,0.000113,3]
[353317131,1739758240660,-198.0,0.000113,3]
[353317133,1739758240669,-1058.83955399,0.00011311,2]
[353317135,1739758240678,-500.0,0.0001138,2]
[353317137,1739758240688,-151.41862857,0.0001138,2]
[353317139,1739758240697,-152.0848904,0.0001138,2]
[353317141,1739758240706,-300.0,0.00011399,2]
[353317143,1739758240715,-22613.648274,0.000114,2]
[353317145,1739758240725,-435.47769845,0.000114,2]
[353317147,1739758240734,-151.0,0.000114,2]
[353317149,1739758240743,-2000.0,0.00011437,2]
[353317151,1739758240752,-200.0,0.00011437,2]
[353317153,1739758240761,-500.0,0.00011438,2]
[353317155,1739758240771,-2000.0,0.00011438,2]
[353317157,1739758240780,-500.0,0.00011438,2]
[353317159,1739758240789,-200.0,0.00011438,2]
[353317161,1739758240798,-579.28,0.00011461,2]
[353317163,1739758240808,-6123.69668144,0.00011503,2]
[353317165,1739758240816,-300.0,0.00011521,2]
[353317167,1739758240825,-2016.5198877,0.00011523,2]
[353317169,1739758240834,-9705.01671162,0.00011533,2]
[353317171,1739758240843,-1000.0,0.00011698,2]
[353317174,1739758240853,-474.0,0.00011759,2]
[353317176,1739758240862,-2135.922,0.00011843,2]
[353317178,1739758240873,-165.3771308,0.000119,2]
[353317180,1739758240882,-1060.0,0.00011906,2]
[353317182,1739758240890,-1060.0,0.00011906,2]
[353317184,1739758240899,-34098.0,0.00011918,2]
[353317185,1739758240907,-151.0,0.00011918,2]
[353317187,1739758240916,-220.961458,0.00011918,2]
[353317189,1739758240926,-500.76719061,0.00011928,2]
[353317191,1739758240934,-2110.0,0.00011974,2]
[353317193,1739758240943,-1000.0,0.00011988,2]
[353317195,1739758240954,-716.24,0.00012,2]
[353317197,1739758240964,-600.0,0.00012,2]
[353317199,1739758240973,-4999.999999,0.00012,2]
[353317201,1739758240982,-6123.69668144,0.00012038,2]
[353317203,1739758240991,-9705.01671162,0.00012078,2]
[353317205,1739758241000,-166.41,0.00012186,2]
[353317207,1739758241010,-3947.949,0.00012244,2]
[353317208,1739758241019,-151.667,0.00012244,2]
[353317210,1739758241028,-1115.377,0.00012244,2]
[353317212,1739758241037,-358.76,0.00012274,2]
[353317214,1739758241047,-151.0,0.00012329,2]
[353317216,1739758241056,-225.45372,0.00012329,2]
[353317218,1739758241069,-225.45372,0.00012329,2]
[353317220,1739758241078,-151.0,0.00012329,2]
[353317222,1739758241087,-151.0,0.00012329,2]
[353317224,1739758241096,-151.0,0.00012329,2]
[353317226,1739758241105,-151.0,0.00012329,2]
[353317228,1739758241114,-894.397479,0.00012329,2]
[353317230,1739758241123,-151.0,0.00012329,2]
[353317232,1739758241133,-894.397479,0.00012329,2]
[353317234,1739758241142,-151.0,0.00012329,2]
[353317235,1739758241151,-151.0,0.00012329,2]
[353317237,1739758241160,-151.0,0.00012329,2]
[353317239,1739758241169,-151.0,0.00012329,2]
[353317241,1739758241178,-2088.411637,0.00012329,2]
[353317243,1739758241187,-151.0,0.00012329,2]
[353317245,1739758241197,-2088.411637,0.00012329,2]
[353317247,1739758241205,-151.0,0.00012329,2]
[353317249,1739758241215,-151.0,0.00012329,2]
[353317251,1739758241223,-151.0,0.00012329,2]
[353317253,1739758241232,-151.0,0.00012329,2]
[353317255,1739758241242,-266.2181,0.00012329,2]
[353317257,1739758241251,-151.0,0.00012329,2]
[353317259,1739758241261,-151.0,0.00012329,2]
[353317261,1739758241270,-151.0,0.00012329,2]
[353317263,1739758241279,-151.0,0.00012329,2]
[353317265,1739758241288,-182.889727,0.00012329,2]
[353317267,1739758241298,-151.0,0.00012329,2]
[353317269,1739758241307,-151.0,0.00012329,2]
[353317271,1739758241317,-151.0,0.00012329,2]
[353317273,1739758241326,-151.0,0.00012329,2]
[353317275,1739758241335,-257.346698,0.00012329,2]
[353317277,1739758241344,-884.831135,0.00012329,2]
[353317279,1739758241353,-257.346698,0.00012329,2]
[353317281,1739758241363,-884.831135,0.00012329,2]
[353317283,1739758241372,-151.0,0.00012329,2]
[353317285,1739758241382,-324.951276,0.00012329,2]
[353317287,1739758241391,-324.951276,0.00012329,2]
[353317289,1739758241400,-194.375824,0.00012329,2]
[353317291,1739758241409,-194.375824,0.00012329,2]
[353317293,1739758241418,-168.663138,0.00012329,2]
[353317295,1739758241427,-168.663138,0.00012329,2]
[353317297,1739758241436,-151.0,0.00012329,2]
[353317299,1739758241445,-1135.601013,0.00012329,2]
[353317300,1739758241455,-1135.601013,0.00012329,2]
[353317302,1739758241463,-10000.0,0.00012329,2]
[353317304,1739758241476,-10000.0,0.00012329,2]
[353317306,1739758241485,-151.0,0.00012329,2]
[353317308,1739758241495,-151.0,0.00012329,2]
[353317310,1739758241504,-151.0,0.00012329,2]
[353317312,1739758241514,-151.0,0.00012329,2]
[353317314,1739758241524,-302.716736,0.00012329,2]
[353317316,1739758241533,-230.421497,0.00012329,2]
[353317317,1739758241542,-302.716736,0.00012329,2]
[353317318,1739758241551,-230.421497,0.00012329,2]
[353317319,1739758241560,-151.0,0.00012329,2]
[353317320,1739758241570,-151.0,0.00012329,2]
[353317321,1739758241579,-151.428666,0.00012329,2]
[353317322,1739758241588,-151.0,0.00012329,2]
[353317323,1739758241597,-151.0,0.00012329,2]
[353317324,1739758241606,-151.0,0.00012329,2]
[353317325,1739758241615,-151.0,0.00012329,2]
[353317326,1739758241624,-151.0,0.00012329,2]
[353317327,1739758241632,-151.0,0.00012329,2]
[353317328,1739758241641,-151.0,0.00012329,2]
[353317329,1739758241651,-151.0,0.00012329,2]
[353317330,1739758241659,-232.592084,0.00012329,2]
[353317332,1739758241669,-151.0,0.00012329,2]
[353317333,1739758241678,-232.592084,0.00012329,2]
[353317335,1739758241687,-151.0,0.00012329,2]
[353317337,1739758241696,-225.45372,0.00012329,2]
[353317339,1739758241705,-225.45372,0.00012329,2]
[353317341,1739758241715,-151.0,0.00012329,2]
[353317343,1739758241724,-151.0,0.00012329,2]
[353317345,1739758241733,-196.146383,0.00012329,2]
[353317347,1739758241741,-196.146383,0.00012329,2]
[353317349,1739758241751,-151.0,0.00012329,2]
[353317351,1739758241760,-151.0,0.00012329,2]
[353317353,1739758241769,-151.0,0.00012329,2]
[353317355,1739758241778,-151.0,0.00012329,2]
[353317357,1739758241788,-236.673984,0.00012329,2]
[353317359,1739758241797,-191.939212,0.00012329,2]
[353317361,1739758241806,-236.673984,0.00012329,2]
[353317363,1739758241815,-191.939212,0.00012329,2]
[353317365,1739758241824,-151.0,0.00012329,2]
[353317367,1739758241833,-198.35069,0.00012329,2]
[353317369,1739758241842,-198.35069,0.00012329,2]
[353317371,1739758241851,-150.0,0.00012334,2]
[353317373,1739758241861,-1000.0,0.00012346,2]
[353317375,1739758241870,-947.38,0.00012424,2]
[353317377,1739758241879,-1060.0,0.00012501,2]
[353317378,1739758241889,-151.0,0.00012511,2]
[353317380,1739758241899,-151.0,0.00012511,2]
[353317382,1739758241908,-151.0,0.00012511,2]
[353317384,1739758241917,-151.45388,0.00012511,2]
[353317386,1739758241926,-151.0,0.00012511,2]
[353317388,1739758241935,-151.0,0.00012511,2]
[353317390,1739758241944,-151.0,0.00012511,2]
[353317392,1739758241954,-884.831135,0.00012511,2]
[353317394,1739758241963,-884.831135,0.00012511,2]
[353317396,1739758241971,-1087.37528312,0.00012526,4]
[353317398,1739758241981,-155.0,0.00012531,2]
[353317400,1739758241990,-252.74389358,0.00012531,2]
[353317403,1739758242000,-299.39,0.00012564,2]
[353317405,1739758242010,-1274.0,0.00012564,2]
[353317407,1739758242020,-787.0,0.00012564,2]
[353317408,1739758242029,-672.161,0.00012564,2]
[353317410,1739758242038,-6123.69668144,0.00012572,2]
[353317412,1739758242047,-9705.01671162,0.00012622,2]
[353317414,1739758242056,-30000.0,0.00012646,2]
[353317417,1739758242066,-151.0,0.00012646,2]
[353317419,1739758242075,-151.0,0.00012646,2]
[353317420,1739758242084,-1311.362731,0.00012646,2]
[353317422,1739758242093,-1500.0,0.000127,2]
[353317424,1739758242102,-579.28,0.00012735,2]
[353317426,1739758242111,-151.0,0.00012795,2]
[353317428,1739758242120,-153.541658,0.00012795,2]
[353317430,1739758242129,-302.716736,0.00012795,2]
[353317432,1739758242138,-302.716736,0.00012795,2]
[353317434,1739758242147,-150.0,0.00012796,2]
[353317436,1739758242157,-1000.0,0.000128,2]
[353317438,1739758242166,-150.0,0.00012801,2]
[353317440,1739758242175,-150.0,0.00012854,2]
[353317442,1739758242184,-150.0,0.00012871,2]
[353317444,1739758242194,-435.47769845,0.000129,2]
[353317446,1739758242203,-165.3771308,0.000129,2]
[353317448,1739758242212,-151.0,0.000129,2]
[353317450,1739758242221,-1000.0,0.000129,2]
[353317452,1739758242230,-151.0,0.000129,2]
[353317454,1739758242239,-230.421497,0.000129,2]
[353317456,1739758242248,-230.421497,0.000129,2]
[353317458,1739758242257,-151.0,0.000129,2]
[353317460,1739758242266,-253.981983,0.000129,2]
[353317461,1739758242275,-151.0,0.000129,2]
[353317463,1739758242284,-151.0,0.000129,2]
[353317465,1739758242294,-150.0,0.00012929,2]
[353317468,1739758242303,-150.0,0.00012941,2]
[353317469,1739758242313,-150.0,0.00012955,2]
[353317471,1739758242322,-150.0,0.00013031,2]
[353317473,1739758242332,-151.0,0.00013033,2]
[353317475,1739758242341,-151.566098,0.00013033,2]
[353317477,1739758242350,-151.0,0.00013033,2]
[353317479,1739758242360,-257.346698,0.00013033,2]
[353317481,1739758242369,-257.346698,0.00013033,2]
[353317483,1739758242379,-194.375824,0.00013033,2]
[353317485,1739758242388,-194.375824,0.00013033,2]
[353317488,1739758242397,-151.53705,0.00013033,2]
[353317491,1739758242406,-10000.0,0.00013033,2]
[353317494,1739758242415,-10000.0,0.00013033,2]
[353317497,1739758242424,-200.23804466,0.00013074,2]
[353317500,1739758242433,-167.99815438,0.00013074,2]
[353317502,1739758242442,-929.96,0.00013081,2]
[353317504,1739758242451,-150.0,0.00013104,2]
[353317506,1739758242461,-6123.69668144,0.00013107,2]
[353317508,1739758242474,-150.0,0.00013114,2]
[353317510,1739758242483,-150.0,0.00013119,2]
[353317512,1739758242492,-166.41,0.00013123,2]
[353317515,1739758242502,-1060.0,0.00013126,2]
[353317517,1739758242511,-150.0,0.00013147,2]
[353317519,1739758242520,-9705.01671162,0.00013167,2]
[353317521,1739758242529,-150.0,0.00013187,2]
[353317524,1739758242538,-150.0,0.00013198,2]
[353317527,1739758242548,-150.0,0.00013216,2]
[353317529,1739758242557,-150.0,0.00013216,2]
[353317531,1739758242566,-150.0,0.00013216,2]
[353317533,1739758242575,-197.73373848,0.00013216,2]
[353317535,1739758242584,-150.0,0.00013217,2]
[353317537,1739758242594,-316.56008408,0.00013233,2]
[353317539,1739758242603,-150.0,0.00013239,2]
[353317541,1739758242612,-150.0,0.00013245,2]
[353317543,1739758242621,-150.0,0.00013257,2]
[353317545,1739758242631,-150.0,0.00013301,2]
[353317547,1739758242639,-150.0,0.00013314,2]
[353317549,1739758242649,-500.0,0.00013342,2]
[353317551,1739758242658,-150.0,0.00013348,2]
[353317553,1739758242667,-150.0,0.00013364,2]
[353317555,1739758242676,-150.0,0.00013419,2]
[353317557,1739758242685,-150.0,0.00013429,2]
[353317559,1739758242694,-150.0,0.00013441,2]
[353317561,1739758242703,-150.0,0.00013453,2]
[353317563,1739758242712,-151.0,0.00013466,2]
[353317565,1739758242721,-151.0,0.00013466,2]
[353317567,1739758242730,-225.45372,0.00013466,2]
[353317569,1739758242740,-225.45372,0.00013466,2]
[353317571,1739758242750,-151.0,0.00013466,2]
[353317573,1739758242759,-324.951276,0.00013466,2]
[353317575,1739758242769,-324.951276,0.00013466,2]
[353317577,1739758242778,-151.0,0.00013466,2]
[353317579,1739758242788,-168.663138,0.00013466,2]
[353317581,1739758242797,-168.663138,0.00013466,2]
[353317583,1739758242807,-1135.601013,0.00013466,2]
[353317585,1739758242816,-1135.601013,0.00013466,2]
[353317586,1739758242826,-1000.0,0.00013469,2]
[353317588,1739758242835,-150.0,0.00013476,2]
[353317590,1739758242843,-150.0,0.00013486,2]
[353317592,1739758242852,-1000.0,0.00013524,2]
[353317594,1739758242862,-150.0,0.00013544,2]
[353317596,1739758242871,-947.38,0.00013554,2]
[353317598,1739758242880,-150.0,0.00013564,2]
[353317599,1739758242889,-150.0,0.00013582,2]
[353317601,1739758242898,-150.0,0.00013585,2]
[353317603,1739758242907,-150.0,0.00013588,2]
[353317605,1739758242916,-150.0,0.00013604,2]
[353317606,1739758242925,-150.0,0.00013628,2]
[353317608,1739758242934,-150.0,0.00013629,2]
[353317610,1739758242943,-150.0,0.00013634,2]
[353317612,1739758242953,-6123.69668144,0.00013641,2]
[353317614,1739758242962,-150.0,0.00013659,2]
[353317615,1739758242971,-45577.0,0.00013671,2]
[353317617,1739758242980,-805.0,0.00013671,2]
[353317619,1739758242989,-150.0,0.00013674,2]
[353317621,1739758242998,-300.0,0.00013697,2]
[353317623,1739758243007,-151.0,0.00013697,2]
[353317625,1739758243016,-2088.411637,0.00013697,2]
[353317626,1739758243025,-2088.411637,0.00013697,2]
[353317628,1739758243034,-300.0,0.00013697,2]
[353317630,1739758243043,-151.0,0.00013697,2]
[353317632,1739758243052,-300.0,0.00013697,2]
[353317633,1739758243061,-300.0,0.00013697,2]
[353317635,1739758243070,-300.0,0.00013697,2]
[353317637,1739758243079,-666.0,0.00013697,2]
[353317639,1739758243089,-1000.0,0.00013697,2]
[353317641,1739758243097,-668.2881871,0.00013697,2]
[353317642,1739758243106,-151.0,0.00013698,2]
[353317644,1739758243116,-151.0,0.00013698,2]
[353317646,1739758243125,-151.0,0.00013698,2]
[353317648,1739758243134,-151.0,0.00013698,2]
[353317650,1739758243143,-151.0,0.00013698,2]
[353317651,1739758243152,-151.0,0.00013698,2]
[353317653,1739758243161,-151.0,0.00013698,2]
[353317655,1739758243171,-151.0,0.00013698,2]
[353317657,1739758243180,-151.0,0.00013698,2]
[353317659,1739758243189,-151.0,0.00013698,2]
[353317660,1739758243198,-151.0,0.00013698,2]
[353317662,1739758243207,-151.0,0.00013698,2]
[353317664,1739758243217,-151.0,0.00013698,2]
[353317666,1739758243227,-232.592084,0.00013698,2]
[353317668,1739758243236,-232.592084,0.00013698,2]
[353317669,1739758243245,-292.126491,0.00013698,2]
[353317671,1739758243255,-232.592084,0.00013698,2]
[353317673,1739758243265,-232.592084,0.00013698,2]
[353317675,1739758243277,-321.343028,0.00013698,2]
[353317677,1739758243286,-321.343028,0.00013698,2]
[353317679,1739758243295,-321.343028,0.00013698,2]
[353317681,1739758243305,-321.343028,0.00013698,2]
[353317683,1739758243314,-216.013623,0.00013698,2]
[353317685,1739758243324,-250.90306,0.00013698,2]
[353317686,1739758243333,-225.45372,0.00013698,2]
[353317688,1739758243342,-225.45372,0.00013698,2]
[353317690,1739758243351,-203.568994,0.00013698,2]
[353317692,1739758243360,-151.64177,0.00013698,2]
[353317693,1739758243369,-151.617961,0.00013698,2]
[353317695,1739758243379,-151.0,0.00013698,2]
[353317697,1739758243388,-151.0,0.00013698,2]
[353317699,1739758243397,-151.0,0.00013698,2]
[353317701,1739758243406,-151.0,0.00013698,2]
[353317702,1739758243415,-151.0,0.00013698,2]
[353317704,1739758243424,-151.0,0.00013698,2]
[353317706,1739758243433,-323.015556,0.00013698,2]
[353317708,1739758243442,-323.015556,0.00013698,2]
[353317709,1739758243451,-151.0,0.00013698,2]
[353317711,1739758243460,-151.0,0.00013698,2]
[353317713,1739758243474,-323.015556,0.00013698,2]
[353317715,1739758243483,-323.015556,0.00013698,2]
[353317717,1739758243492,-253.050725,0.00013698,2]
[353317719,1739758243501,-253.050725,0.00013698,2]
[353317721,1739758243511,-253.050725,0.00013698,2]
[353317722,1739758243521,-253.050725,0.00013698,2]
[353317724,1739758243530,-151.0,0.00013698,2]
[353317726,1739758243541,-151.0,0.00013698,2]
[353317728,1739758243551,-191.347704,0.00013698,2]
[353317730,1739758243560,-151.0,0.00013698,2]
[353317732,1739758243569,-151.0,0.00013698,2]
[353317734,1739758243578,-151.0,0.00013698,2]
[353317736,1739758243587,-151.0,0.00013698,2]
[353317739,1739758243596,-151.0,0.00013698,2]
[353317741,1739758243606,-151.0,0.00013698,2]
[353317744,1739758243615,-151.097447,0.00013698,2]
[353317748,1739758243625,-258.482244,0.00013698,2]
[353317750,1739758243634,-504.16780254,0.00013698,2]
[353317753,1739758243644,-500.0,0.00013698,2]
[353317756,1739758243653,-500.0,0.00013698,2]
[353317758,1739758243662,-151.128928,0.00013698,2]
[353317761,1739758243671,-503.47296852,0.00013698,2]
[353317764,1739758243681,-505.16752051,0.00013698,2]
[353317767,1739758243691,-504.44545785,0.00013698,2]
[353317771,1739758243700,-513.5771376,0.00013698,2]
[353317773,1739758243710,-894.397479,0.00013698,2]
[353317775,1739758243719,-894.397479,0.00013698,2]
[353317777,1739758243728,-600.44745999,0.00013698,2]
[353317779,1739758243737,-151.0,0.00013698,2]
[353317780,1739758243746,-500.0,0.00013698,2]
[353317782,1739758243755,-894.397479,0.00013698,2]
[353317784,1739758243765,-894.397479,0.00013698,2]
[353317786,1739758243776,-151.0,0.00013698,2]
[353317788,1739758243785,-506.88060843,0.00013698,2]
[353317790,1739758243795,-511.83015286,0.00013698,2]
[353317792,1739758243804,-500.0,0.00013698,2]
[353317794,1739758243813,-503.95515929,0.00013698,2]
[353317796,1739758243822,-506.53153074,0.00013698,2]
[353317797,1739758243832,-500.0,0.00013698,2]
[353317799,1739758243841,-500.0,0.00013698,2]
[353317801,1739758243850,-500.0,0.00013698,2]
[353317803,1739758243859,-500.0,0.00013698,2]
[353317805,1739758243868,-500.0,0.00013698,2]
[353317807,1739758243877,-151.0,0.00013698,2]
[353317809,1739758243885,-508.25542538,0.00013698,2]
[353317810,1739758243895,-500.0,0.00013698,2]
[353317812,1739758243903,-500.0,0.00013698,2]
[353317814,1739758243913,-151.0,0.00013698,2]
[353317816,1739758243922,-151.0,0.00013698,2]
[353317818,1739758243931,-151.0,0.00013698,2]
[353317820,1739758243940,-500.0,0.00013698,2]
[353317822,1739758243949,-500.0,0.00013698,2]
[353317823,1739758243958,-604.5292789,0.00013698,2]
[353317825,1739758243967,-503.9279249,0.00013698,2]
[353317827,1739758243977,-500.0,0.00013698,2]
[353317829,1739758243986,-505.15509943,0.00013698,2]
[353317831,1739758243995,-151.0,0.00013698,2]
[353317832,1739758244003,-500.0,0.00013698,2]
[353317834,1739758244012,-500.0,0.00013698,2]
[353317835,1739758244022,-500.0,0.00013698,2]
[353317837,1739758244031,-500.0,0.00013698,2]
[353317839,1739758244040,-500.0,0.00013698,2]
[353317841,1739758244049,-500.0,0.00013698,2]
[353317843,1739758244058,-500.0,0.00013698,2]
[353317845,1739758244067,-500.0,0.00013698,2]
[353317846,1739758244076,-500.0,0.00013698,2]
[353317848,1739758244085,-500.0,0.00013698,2]
[353317850,1739758244098,-500.0,0.00013698,2]
[353317852,1739758244108,-500.0,0.00013698,2]
[353317854,1739758244117,-500.0,0.00013698,2]
[353317856,1739758244126,-500.0,0.00013698,2]
[353317857,1739758244135,-500.0,0.00013698,2]